[Event "Portuguese Rapid-ch 2022"]
[Site "Viseu"]
[Date "2022.06.10"]
[Round "3.8"]
[White "Rego, Pedro Filipe"]
[Black "Goncalves, Ruan Lucas Alves"]
[Result "1/2-1/2"]
[ECO "D46"]
[WhiteElo "2251"]
[BlackElo "1980"]
[Annotator "TA"]
[PlyCount "110"]
[EventDate "2022.06.09"]
[EventType "rapid"]
[EventCountry "POR"]
[SourceTitle "playchess.com"]
[Source "ChessBase"]
[SourceQuality "1"]
[TimeControl "600+5"]

{[%evp 11,110,21,35,25,31,20,32,10,24,23,35,10,27,11,25,0,16,5,22,0,0,0,0,0,0,0,0,-16,-17,-36,-32,-43,0,0,35,50,175,54,63,40,56,24,19,0,0,-359,-129,-283,2,-29,0,-110,75,66,132,129,136,62,70,0,0,-5,0,0,0,0,12,0,2,0,0,0,0,0,0,0,0,0,0,0,0,0,0,0,0,-17,-17,-35,0,0,0,0,0,0,0,0,0,0,0,0,0]} 1. d4 {[%emt 0:00:03]} d5 {[%emt 0:00:01]} 2. c4 {[%emt 0:00:07]} c6 {[%emt 0:00:05]} 3. Nc3 {[%emt 0:00:03]} Nf6 {[%emt 0:00:02]} 4. e3 {[%emt 0:00:04]} e6 {[%emt 0:00:09]} 5. Nf3 {[%emt 0:00:04]} Nbd7 {[%emt 0:00:14]} 6. Bd3 {[%emt 0:00:04]} Be7 {[%emt 0:00:25]} 7. b3 {[%emt 0:00:11] D46: Semi-Slav: 5 e3 Nbd7 6 Bd3, Black avoids the Meran.} b6 {[%emt 0:00:25]} 8. Bb2 {[%emt 0:00:07]} Bb7 {[%emt 0:00:38]} 9. Rc1 {[%emt 0:00:03] White is slightly better.} Rc8 {[%emt 0:00:04]} 10. O-O {[%emt 0:00:06]} O-O {[%emt 0:00:15]} 11. cxd5 {[%emt 0:00:01]} exd5 {[%emt 0:00:09]} 12. Qe2 {[%emt 0:00:14]} (12. Ne5 {seems wilder.} Re8 13. f4 Bb4 14. Qf3) 12... Re8 {[%emt 0:00:09] [#]} 13. h3 $146 {[%emt 0:00:18]} ({Predecessor:} 13. Ne5 Bb4 14. f4 Bxc3 15. Rxc3 Ne4 16. Bxe4 dxe4 17. Rc2 Nf6 18. Rfc1 Nd5 19. Nxc6 Bxc6 20. Rxc6 {1-0 (48) Dominguez Pons,E (2381)-Sama Salinas,H (2290) Barcelona 2019}) 13... Nf8 {[%emt 0:00:15]} 14. Ba6 {[%emt 0:01:02]} Qc7 {[%emt 0:00:26]} 15. Bxb7 {[%emt 0:00:30]} Qxb7 {[%emt 0:00:01]} 16. Qd3 {[%emt 0:00:11]} Bd6 {[%emt 0:00:21]} 17. Ne2 {[%emt 0:00:47]} Ng6 {[%emt 0:00:32]} 18. Rc2 {[%emt 0:01:18]} Qd7 {[%emt 0:00:12]} 19. Bc1 {[%emt 0:00:11]} Ne4 {[%emt 0:00:01]} 20. Nf4 {[%emt 0:01:01]} Nxf4 {[%emt 0:00:17]} 21. exf4 {[%emt 0:00:01]} Qf5 {[%emt 0:00:02]} 22. Ne5 {[%emt 0:00:07]} Bxe5 {[%emt 0:00:53]} 23. fxe5 {[%emt 0:00:07] g4 is the strong threat.} c5 {[%emt 0:02:05]} (23... h5 $14) 24. dxc5 {[%emt 0:00:55]} (24. g4 $1 $18 {[%cal Rg4f5]} Qg6 25. f3) 24... bxc5 {[%emt 0:00:02]} 25. Qxd5 {[%emt 0:01:30]} Rxe5 {[%emt 0:00:26]} 26. Qc4 {[%emt 0:00:42]} Nd6 {[%emt 0:00:34]} 27. Qc3 {[%emt 0:00:02]} Nb5 {[%emt 0:00:04]} 28. Qd2 {[%emt 0:00:35][%mdl 8192]} (28. Qc4 $11 {and White stays safe.}) 28... Nd4 $2 {[%emt 0:00:12]} (28... Rd5 $19 29. Qa5 Qxc2 30. Qxb5 Rd1 31. Rxd1 Qxd1+ 32. Qf1 Qxf1+ 33. Kxf1 c4) 29. Rc4 $2 {[%emt 0:00:31] [#]} (29. Bb2 $17 {is a better defense.} Re2 30. Qxe2 Nxe2+ 31. Rxe2) 29... Rd8 $2 {[%emt 0:00:38]} ({Better is} 29... Nf3+ $1 $19 {[%mdl 512]} 30. gxf3 Qxh3) 30. Kh1 {[%emt 0:00:22]} Rd7 {[%emt 0:00:38]} (30... h6 $5 {[%cal Re5e2]}) 31. Qf4 {[%emt 0:00:15] [#]} (31. Qc3 $11 {keeps the balance.}) 31... Qxf4 $2 {[%emt 0:02:15]} (31... Qd3 $1 $17 {[%cal Rd3f1]} 32. Kh2 (32. Qxe5 $2 {loses.} Qxf1+ 33. Kh2 Nf3+ 34. Kg3 Nxe5 $19) 32... Qxf1 33. Rxd4 (33. Qxe5 $2 {is the wrong capture.} Nf3+ 34. Kg3 Nxe5 $19) 33... cxd4 34. Qxe5 Rd8) 32. Bxf4 $16 {[%emt 0:00:01]} Re2 {[%emt 0:00:07]} (32... Red5 $14) 33. Rxc5 {[%emt 0:00:25] White threatens Rc8+ and mate.} h6 {[%emt 0:00:00]} 34. Be3 {[%emt 0:00:11]} (34. Rd1 $16) 34... Nc2 $1 $14 {[%emt 0:00:06]} (34... Rxa2 $2 35. Rd1 $18) 35. Rc3 {[%emt 0:00:35]} ({White should play} 35. Rc8+ $14 Kh7 36. Bc5) 35... Nxe3 $11 {[%emt 0:00:03]} 36. Rxe3 {[%emt 0:00:06]} Rxe3 {[%emt 0:00:01]} 37. fxe3 {[%emt 0:00:01][%mdl 4096] Endgame KR-KR} Rd2 $1 {[%emt 0:00:01]} 38. a4 {[%emt 0:00:05]} Rd3 {[%emt 0:00:01]} 39. Rb1 {[%emt 0:00:04]} Rxe3 {[%emt 0:00:01]} 40. Rb2 {[%emt 0:00:04]} Kf8 {[%emt 0:00:05]} 41. Kg1 {[%emt 0:00:00]} Ke7 {[%emt 0:00:01]} 42. Kf2 {[%emt 0:00:01]} Rc3 {[%emt 0:00:02]} 43. b4 {[%emt 0:00:09]} Kd6 {[%emt 0:00:09]} 44. b5 {[%emt 0:00:04]} Ra3 {[%emt 0:00:01]} 45. Rb4 {[%emt 0:00:05]} Kc5 {[%emt 0:00:12]} 46. Rf4 {[%emt 0:00:05]} f6 {[%emt 0:00:01]} 47. h4 {[%emt 0:00:10]} Rc3 {[%emt 0:00:05]} 48. Rg4 {[%emt 0:00:05]} g5 {[%emt 0:00:02] Strongly threatening ...f5.} 49. hxg5 {[%emt 0:00:03]} hxg5 {[%emt 0:00:01] And now ...Rc4 would win.} (49... fxg5 $5 {[%cal Rc3c4]} 50. Re4 Rc4 51. Re5+ Kd6 $15) 50. Re4 {[%emt 0:00:13] The position is equal.} Rc4 {[%emt 0:00:11]} 51. Re6 {[%emt 0:00:13]} Rxa4 {[%emt 0:00:02]} 52. Rxf6 {[%emt 0:00:04]} Rf4+ {[%emt 0:00:01]} 53. Rxf4 {[%emt 0:00:03]} gxf4 {[%emt 0:00:01]} 54. Kf3 {[%emt 0:00:01]} Kxb5 {[%emt 0:00:01] ( -> ...a5)} 55. Kxf4 {[%emt 0:00:01]} a5 {[%emt 0:00:04] Weighted Error Value: White=0.36/Black=0.29 (precise)} 1/2-1/2

[Event "Portuguese Rapid-ch 2022"]
[Site "Viseu"]
[Date "2022.06.10"]
[Round "4.1"]
[White "Ferreira, Luis Pedro"]
[Black "Ferreira, Jorge Viterbo"]
[Result "1/2-1/2"]
[ECO "C49"]
[WhiteElo "2183"]
[BlackElo "2512"]
[Annotator "TA"]
[PlyCount "31"]
[EventDate "2022.06.09"]
[EventType "rapid"]
[EventCountry "POR"]
[SourceTitle "playchess.com"]
[Source "ChessBase"]
[SourceQuality "1"]
[TimeControl "600+5"]

{[%evp 12,31,11,3,13,0,0,0,4,-12,0,-13,-13,-15,-14,-21,-17,-29,-22,-21,0,-7]} 1. e4 e5 2. Nf3 Nc6 3. Nc3 Nf6 4. Bb5 Bb4 5. O-O O-O 6. Bxc6 dxc6 7. d3 Nd7 {C49: Four Knights: 4 Bb5 Bb4.} 8. Ne2 Re8 9. Ng3 Nf8 {[#]} 10. c3 $146 ({Predecessor:} 10. Kh1 Bd6 11. Bg5 f6 12. Be3 c5 13. Ng1 Ne6 14. N1e2 Nd4 15. b3 Be6 16. f4 {1-0 (39) Kovalenko,I (2647)-Stevic,H (2570) Zagreb 2021}) 10... Bd6 11. Re1 c5 12. d4 cxd4 13. cxd4 exd4 14. Nxd4 Ne6 15. Be3 Be5 {[%cal Re5d4]} 16. Nxe6 {An uneventful encounter.  Weighted Error Value: White=0.07 (flawless) /Black=0.04 (flawless)} 1/2-1/2

[Event "Portuguese Rapid-ch 2022"]
[Site "Viseu"]
[Date "2022.06.10"]
[Round "4.2"]
[White "Sousa, Andre Ventura"]
[Black "Santos, Jose Guilherme B Lim"]
[Result "1-0"]
[ECO "D37"]
[WhiteElo "2420"]
[BlackElo "2365"]
[Annotator "TA"]
[PlyCount "43"]
[EventDate "2022.06.09"]
[EventType "rapid"]
[EventCountry "POR"]
[SourceTitle "playchess.com"]
[Source "ChessBase"]
[SourceQuality "1"]
[TimeControl "600+5"]

{[%evp 9,43,18,17,0,0,0,0,0,0,-3,0,0,6,-25,3,0,0,22,0,-18,37,0,0,0,0,0,0,-36,485,0,217,-82,961,-341,932,-1277]} 1. d4 Nf6 2. c4 e6 3. Nf3 d5 4. Nc3 dxc4 5. e4 Bb4 6. Bxc4 {D24: Queen's Gambit Accepted: 3 Nf3 Nf6 4 Nc3.} (6. Bg5 {looks sharper.} c5 7. Bxc4 cxd4 8. Nxd4 Qa5 9. Bxf6 Bxc3+ 10. Kf1) 6... Nxe4 7. O-O Nxc3 8. bxc3 {The position is equal.} (8. Qb3 Nd5 9. Bxd5 Qxd5 $17) 8... Be7 9. Bf4 O-O 10. Re1 Nc6 {[#]} 11. Qd3 $146 ({Predecessor:} 11. h4 Bd6 12. Bd2 Re8 13. a4 h6 14. a5 Bd7 15. Bd3 e5 16. d5 Nb8 17. Qb1 {0-1 (41) Boensch,U (2553)-Kraemer,M (2578) Germany 2019}) 11... Bf6 12. Qe4 Bd7 13. Bd3 {[%csl Gd3][%cal Re4h7]} g6 14. h4 Na5 (14... Ne7 $11) 15. Bg5 Bc6 16. Qf4 $36 {[%mdl 2048] White has good play.} Bxg5 17. Nxg5 {[%cal Oh4h5]} Qd6 18. Re5 {[%cal Og5h7] Threatens to win with Nxh7!} Bd5 $2 {[%mdl 8192] [#]} (18... f6 $15 {stays ahead.} 19. Nxh7 fxe5) 19. h5 $2 ({Only move:} 19. Nxh7 $1 $18 {[%mdl 512] Hoping for Nf6+.} f5 (19... Kxh7 20. Qf6) 20. Qh6) 19... Nc6 $2 {[#]} (19... f6 $11 20. hxg6 hxg6) 20. Nxh7 $2 Qe7 $2 {[%mdl 8192]} (20... Nxe5 21. dxe5 Qd8 22. Qh6 $18) (20... Kxh7 $17 21. hxg6+ Kg7 22. gxf7 Rxf7 23. Rg5+ Kf8) 21. Qg3 $4 {[%mdl 8192]} g5 $4 {[%mdl 8192]} 22. Qh4 $4 {[%mdl 40960] Weighted Error Value: White=1.32/Black=0.76. Loss on time!?} (22. Rxg5+ $18 Kh8 23. Nxf8 Qxf8 24. c4) 1-0

[Event "Portuguese Rapid-ch 2022"]
[Site "Viseu"]
[Date "2022.06.10"]
[Round "4.3"]
[White "Fernandes, Antonio"]
[Black "Martins, Bruno Andre Leite"]
[Result "0-1"]
[ECO "A04"]
[WhiteElo "2314"]
[BlackElo "2327"]
[Annotator "TA"]
[PlyCount "177"]
[EventDate "2022.06.09"]
[EventType "rapid"]
[EventCountry "POR"]
[SourceTitle "playchess.com"]
[Source "ChessBase"]
[SourceQuality "1"]
[TimeControl "600+5"]

{[%evp 9,177,0,11,12,33,14,18,23,15,16,20,19,20,0,21,-14,70,0,25,0,21,0,18,7,39,32,41,16,27,26,25,20,22,28,54,0,20,0,44,42,62,58,66,17,48,17,19,0,22,18,29,-13,13,-21,0,-3,0,0,0,7,36,44,88,89,139,146,155,155,169,162,157,161,168,142,161,131,132,127,144,132,137,138,152,157,172,97,104,104,105,97,97,87,89,87,97,97,155,153,147,151,143,141,413,107,105,129,292,291,1032,295,513,508,519,489,488,483,858,821,686,683,683,349,625,316,451,445,12444,12444,10181,7015,1164,790,29965,29967,29973,29972,29979,29980,29982,29982,29982,29981,29983,29984,29985,29982,29982,29983,29983,29982,29982,29983,29983,29983,29981,29976,29977,29976,29977,29977,29977,29977,29977,29978,29978,29978,29978,29979,29980,29981]} 1. Nf3 {[%emt 0:00:02]} c5 {[%emt 0:00:09]} 2. g3 {[%emt 0:00:03]} d6 {[%emt 0:00:02]} 3. d4 {[%emt 0:00:10]} cxd4 {[%emt 0:00:03]} 4. Nxd4 {[%emt 0:00:02]} e5 {[%emt 0:00:01]} 5. Nb3 {[%emt 0:00:06]} Nc6 {[%emt 0:00:17]} 6. Bg2 {[%emt 0:00:03] A04: Unusual lines after 1 Nf3 and King's Indian Attack.} Be6 {[%emt 0:00:02]} 7. Nc3 {[%emt 0:00:31] Inhibits d5.} Nf6 {[%emt 0:00:02]} 8. Bg5 {[%emt 0:00:16] The position is equal.} Be7 {[%emt 0:00:02]} 9. O-O {[%emt 0:00:03]} O-O {[%emt 0:00:10]} 10. Bxf6 {[%emt 0:00:31]} Bxf6 {[%emt 0:00:01]} 11. Nd5 {[%emt 0:00:01] [#]} Rc8 $146 {[%emt 0:00:21]} ({Predecessor:} 11... Bg5 12. a4 Qd7 13. a5 Rac8 14. c3 Bh3 15. Qd3 Bxg2 16. Kxg2 f5 17. f4 exf4 18. gxf4 {½-½ (47) Vandenbergen,N (2142)-Meertens,M (2160) Nordrheinwestfalen 2018}) 12. c3 {[%emt 0:00:14]} Re8 {[%emt 0:01:14]} (12... Bg5 $11) 13. Qd2 {[%emt 0:02:16]} (13. Nxf6+ $14 gxf6 14. Qd3) 13... Be7 {[%emt 0:01:32]} 14. Rfd1 {[%emt 0:00:03]} Bf8 {[%emt 0:00:06]} 15. c4 {[%emt 0:00:22]} g6 {[%emt 0:02:08]} 16. Rac1 {[%emt 0:00:07]} b6 {[%emt 0:00:08]} 17. Na1 {[%emt 0:00:39][%cal Bb3a1,Ba1c2,Bc2b4][%mdl 32]} Nd4 {[%emt 0:00:51]} 18. e3 {[%emt 0:00:48]} Bh6 {[%emt 0:00:21]} 19. Qe1 {[%emt 0:00:35]} Nc6 {[%emt 0:03:10][%cal Bd4c6,Bc6b8,Bb8d7,Bd7e5][%mdl 32]} 20. Nc2 {[%emt 0:00:05]} f5 {[%emt 0:00:05]} 21. Ncb4 {[%emt 0:00:05] Pair of Knights!} Nb8 22. Nd3 (22. Nc3 $5 {[%cal Rc3b5]}) 22... Nd7 {[%emt 0:00:10]} 23. Qb4 {[%emt 0:02:39]} e4 {[%emt 0:00:09] Strongly threatening ...Bxd5.} 24. N3f4 {[%emt 0:00:08]} Ne5 {[%emt 0:00:05]} 25. Nxe6 {[%emt 0:01:49]} Rxe6 {[%emt 0:00:01]} 26. Rc2 {[%emt 0:00:13]} (26. Qa4 $14) 26... Bf8 {[%emt 0:00:17]} 27. b3 {[%emt 0:00:03]} Qd7 {[%emt 0:00:10]} 28. Qa3 {[%emt 0:00:10]} Qg7 {[%emt 0:00:14]} 29. Qb2 {[%emt 0:00:19]} h5 {[%emt 0:00:08]} 30. Rcd2 {[%emt 0:00:05]} h4 {[%emt 0:00:08]} 31. Nf4 {[%emt 0:00:03]} Rf6 {[%emt 0:00:18]} 32. Qd4 {[%emt 0:00:01]} hxg3 {[%emt 0:00:03]} 33. hxg3 {[%emt 0:00:02]} Qf7 {[%emt 0:00:05]} 34. Qd5 {[%emt 0:00:01]} Bh6 {[%emt 0:00:07]} 35. Qxf7+ {[%emt 0:00:05]} Rxf7 {[%emt 0:00:01]} 36. Rxd6 {[%emt 0:00:01]} Kh7 {[%emt 0:00:17]} (36... Bf8 $142) 37. Re6 $16 {[%emt 0:00:03]} Bxf4 {[%emt 0:00:03]} 38. gxf4 {[%emt 0:00:01]} Nd3 {[%emt 0:00:01]} 39. Bf1 {[%emt 0:00:01]} Nc5 {[%emt 0:00:02]} 40. Red6 {[%emt 0:00:02]} Rcc7 {[%emt 0:00:08]} 41. Be2 {[%emt 0:00:01]} Kg7 {[%emt 0:00:02]} 42. Kg2 {[%emt 0:00:02]} Rfd7 {[%emt 0:00:05]} 43. f3 {[%emt 0:00:19]} Rxd6 {[%emt 0:00:04]} 44. Rxd6 {[%emt 0:00:00][%mdl 4096] Endgame KRB-KRN} Kf7 {[%emt 0:00:05]} 45. Kg3 {[%emt 0:00:05]} Re7 {[%emt 0:00:08]} 46. Kf2 {[%emt 0:00:06]} Re8 {[%emt 0:00:03]} 47. Rd4 {[%emt 0:00:03]} ({White should play} 47. b4 $18 exf3 48. Kxf3 (48. bxc5 fxe2 49. Rd7+ Ke6 $16)) 47... Rh8 {[%emt 0:00:03]} 48. Kg2 {[%emt 0:00:04] Inhibits Rh2+.} Ke7 {[%emt 0:00:12]} 49. Rd1 {[%emt 0:00:16]} a5 {[%emt 0:00:05]} 50. fxe4 {[%emt 0:00:10]} Nxe4 {[%emt 0:00:01]} 51. Bf3 {[%emt 0:00:00] Hoping for Bxe4.} Nc5 {[%emt 0:00:04]} 52. Rd5 {[%emt 0:00:08]} Ke6 {[%emt 0:00:09]} (52... Rb8 $142 53. Kg3 Rh8) 53. a3 $1 {[%emt 0:00:04]} Rc8 {[%emt 0:00:06]} 54. b4 {[%emt 0:00:03]} axb4 {[%emt 0:00:01]} 55. axb4 {[%emt 0:00:00]} Na6 {[%emt 0:00:05][%mdl 8192]} (55... Nd7 $16) 56. Rb5 $2 {[%emt 0:00:01]} (56. Re5+ $18 Kf6 57. Bb7 Rxc4 58. Bxa6 Rxb4 59. Rb5) 56... Rb8 {[%emt 0:00:08]} 57. Kg3 {[%emt 0:00:09]} Kd6 $2 {[%emt 0:00:07]} (57... Nc7 $16) 58. Kh4 $18 {[%emt 0:00:04]} Nc7 $2 {[%emt 0:00:01] [#]} (58... Rh8+ 59. Kg5 Kc7 60. Kxg6 Rh3) 59. Re5 $2 {[%emt 0:00:01]} (59. Rxb6+ $3 {[%mdl 512]} Rxb6 60. c5+ Kd7 61. cxb6) 59... Rh8+ $2 {[%emt 0:00:08]} (59... Ne6 {was worth a try.} 60. c5+ bxc5) 60. Kg5 {[%emt 0:00:05]} Rh3 {[%emt 0:00:01]} 61. Bb7 {[%emt 0:00:05]} Rg3+ {[%emt 0:00:04]} 62. Kf6 {[%emt 0:00:02]} Rg1 {[%emt 0:00:10]} (62... Kd7 $142 63. Kf7 Kd8) 63. c5+ {[%emt 0:00:01]} bxc5 {[%emt 0:00:01]} 64. bxc5+ {[%emt 0:00:01][%cal Bb4c5,Bc5c6,Bc6c7][%mdl 32]} Kd7 {[%emt 0:00:01]} 65. Re7+ {[%emt 0:00:01]} Kd8 {[%emt 0:00:01]} 66. Bc6 {[%emt 0:00:09] aiming for Rd7+.} Rd1 {[%emt 0:00:19] Inhibits Rd7+.} (66... Na6 $142 67. Re5 Rg3) 67. Rg7 {[%emt 0:00:05] Threatens to win with Rg8+.} Nd5+ {[%emt 0:00:01]} (67... Na6 $142 68. Rxg6 Re1) 68. Bxd5 {[%emt 0:00:03]} Rxd5 {[%emt 0:00:01] KR-KR} 69. c6 {[%emt 0:00:28]} Rd6+ {[%emt 0:00:02]} 70. Kg5 {[%emt 0:00:01] White threatens Rd7+ and mate.} Re6 {[%emt 0:00:15]} 71. Rxg6 {[%emt 0:00:15] White mates.} Rxe3 {[%emt 0:00:01]} 72. Kxf5 {[%emt 0:00:01]} Ke7 {[%emt 0:00:08]} 73. c7 {[%emt 0:00:16]} Rc3 {[%emt 0:00:07]} 74. Rg7+ {[%emt 0:00:01]} Kd6 {[%emt 0:00:01]} 75. Kf6 {[%emt 0:00:05]} Rc1 {[%emt 0:00:02]} 76. f5 {[%emt 0:00:01]} Rc5 {[%emt 0:00:01]} 77. Rh7 {[%emt 0:00:09]} Rc6 {[%emt 0:00:03]} 78. Kg5 {[%emt 0:00:15]} Rc1 {[%emt 0:00:05]} 79. Kg6 {[%emt 0:00:04]} Rg1+ {[%emt 0:00:04]} 80. Kf6 {[%emt 0:00:04]} Rc1 {[%emt 0:00:02]} 81. Re7 {[%emt 0:00:05]} Rc5 {[%emt 0:00:12]} 82. Re1 {[%emt 0:00:05]} Kxc7 {[%emt 0:00:06]} 83. Kg6 {[%emt 0:00:01]} Kd7 {[%emt 0:00:05]} 84. f6 {[%emt 0:00:01][%cal Bf5f6,Bf6f7][%mdl 32]} Rc2 {[%emt 0:00:05]} 85. f7 {[%emt 0:00:03]} Rg2+ {[%emt 0:00:03]} 86. Kh7 {[%emt 0:00:02]} Rf2 {[%emt 0:00:04]} 87. Kg7 {[%emt 0:00:01]} Rg2+ {[%emt 0:00:02] [#]} 88. Kf8 $1 {[%emt 0:00:01]} Ra2 {[%emt 0:00:19]} 89. Rg1 {[%emt 0:00:11][%mdl 32768] Weighted Error Value: White=0.36/Black=0.28 (precise) . Loss on time!?} 0-1

[Event "Portuguese Rapid-ch 2022"]
[Site "Viseu"]
[Date "2022.06.10"]
[Round "4.4"]
[White "Rego, Pedro Filipe"]
[Black "Santos, Antonio P"]
[Result "1-0"]
[ECO "A45"]
[WhiteElo "2251"]
[BlackElo "2182"]
[Annotator "TA"]
[PlyCount "93"]
[EventDate "2022.06.09"]
[EventType "rapid"]
[EventCountry "POR"]
[SourceTitle "playchess.com"]
[Source "ChessBase"]
[SourceQuality "1"]
[TimeControl "600+5"]

{[%evp 17,93,32,19,34,59,35,114,123,175,81,134,81,105,51,87,66,52,54,51,0,0,12,0,30,26,0,0,-91,-98,-115,-107,-80,0,-87,0,-31,-2,-5,0,0,0,0,0,0,0,0,7,7,21,0,8,8,8,0,0,0,8,16,21,20,21,0,21,12,13,0,175,24,23,24,316,0,0,0,267,116,240,0]} 1. d4 Nf6 2. Bf4 d5 3. e3 c5 4. c3 Nc6 5. Nd2 e6 6. Ngf3 Bd6 7. Bg3 O-O 8. Bd3 Re8 9. Ne5 Qc7 {[%cal Rc6e5]} 10. f4 {D02: 1 d4 d5 2 Nf3 sidelines, including 2...Nf6 3 g3 and 2...Nf6 3 Bf4.} cxd4 11. exd4 Bd7 {[#]} (11... Rf8 $14) 12. Bh4 $146 {White is better.} ({Predecessor:} 12. O-O Rab8 13. Bh4 Be7 14. Bxf6 Bxf6 15. Bxh7+ Kf8 16. Bd3 Ke7 17. Ndf3 Rh8 18. Qd2 {½-½ (26) Sorensen,B (1691)-Christensen,V (1886) Helsingor 2018}) 12... Be7 (12... Ne4 $16 {might work better.}) 13. Qf3 (13. Bxf6 $18 {has better winning chances.} Bxf6 14. Bxh7+ $1 {[%mdl 512]} (14. Qh5 g6 $11) 14... Kxh7 15. Qh5+ Kg8 16. Qxf7+ Kh7 17. Qh5+ (17. Nxd7 Qxf4 18. O-O-O Bg5 $16) 17... Kg8 18. Qf7+ Kh7 19. Qg6+ (19. Nxd7 Qxf4 20. O-O-O Bg5 $16) 19... Kg8 20. Qf7+) 13... Rad8 (13... g6 $142) 14. Bf2 (14. O-O $142) 14... b5 15. a3 (15. O-O $16) 15... a5 16. g4 {[%cal Bg2g4,Bg4g5][%mdl 32]} b4 17. axb4 axb4 18. g5 (18. O-O $5 {[%cal Rg4g5]}) 18... bxc3 19. bxc3 Nxe5 20. fxe5 Ne4 21. Nxe4 (21. Bxe4 dxe4 22. Nxe4 Bc6 $17) 21... dxe4 22. Qxe4 (22. Bxe4 $11 {remains equal.} Bxg5 23. O-O) 22... Qxc3+ $17 23. Ke2 g6 {aiming for ...Bc6.} (23... Bxg5 24. Qxh7+ (24. Be3 $2 Qb2+ 25. Kf3 Bc6 $19) 24... Kf8 25. Rhc1 Qd2+ 26. Kf1 $16) 24. Rac1 Qa5 (24... Qb2+ $17 25. Rc2 Qa3) 25. Be3 {[#] Active counter play!} (25. Ra1 $11 Qc3 26. Rac1) 25... Bb5 ({Better is} 25... Rb8 $1 $17 {White must now prevent ...Rb2+.} 26. Ra1 Qc3) 26. Rhd1 {[%cal Bh1d1,Bd1d3,Bd3b3,Bb3b8][%mdl 32]} Bxd3+ (26... Qa2+ {feels hotter.} 27. Kf1 Bxd3+ 28. Rxd3 Qxh2 29. Qg2 Qxg2+ 30. Kxg2 Rb8) 27. Rxd3 Qd5 (27... Rb8 {is more complex.} 28. Kf3 Rb2 29. Kg3 Bb4) 28. Qxd5 Rxd5 29. Rc7 Kf8 30. Rb3 Bd8 31. Ra7 Re7 32. Ra8 Red7 33. h4 Kg7 34. Rbb8 {Hoping for Bd2.} Kf8 $1 35. Rc8 Ke7 36. Kf3 Ke8 37. Ke4 Kf8 38. Bf2 Ke7 39. Be3 Kf8 40. Ra4 Kg7 41. Bd2 ({Don't do} 41. Raa8 Kf8 $14) 41... Kg8 $2 (41... Bb6 $11 42. Be3 Rd8) 42. Bc3 $2 ({White should play} 42. Kf3 $18) 42... Kg7 $11 43. Raa8 {Strongly threatening Rcb8.} h6 $2 {[%mdl 8192] [#]} (43... Rc7 $11) 44. Kf4 $2 (44. Rcb8 $1 $18) 44... hxg5+ 45. hxg5 {And now Ba1 would win.} Kh7 $2 {[%mdl 8192]} (45... Rc7 $1 $11 {and Black is okay.}) 46. Ke4 (46. Rcb8 $18) 46... Kg7 (46... Bxg5 $2 {leads to mate.} 47. Rh8+ Kg7 48. Rag8#) (46... Rc7 $16 {was necessary.}) 47. Kf3 $2 {[%mdl 32768] Weighted Error Value: White=0.43/Black=0.54. Sensor Board Error (Ke4/e5)?} ({And not} 47. Kf4 Rc7 $11) (47. Rcb8 $18) 1-0

[Event "Portuguese Rapid-ch 2022"]
[Site "Viseu"]
[Date "2022.06.10"]
[Round "4.5"]
[White "Goncalves, Ruan Lucas Alves"]
[Black "Veiga, Jose Francisco R P N"]
[Result "0-1"]
[ECO "C54"]
[WhiteElo "1980"]
[BlackElo "2377"]
[Annotator "TA"]
[PlyCount "94"]
[EventDate "2022.06.09"]
[EventType "rapid"]
[EventCountry "POR"]
[SourceTitle "playchess.com"]
[Source "ChessBase"]
[SourceQuality "1"]
[TimeControl "600+5"]

{[%evp 13,94,-20,68,5,129,111,106,112,214,213,210,100,90,77,248,224,312,266,268,265,252,246,252,182,177,164,138,120,127,135,143,-117,-118,-122,-122,-115,102,96,166,48,81,81,96,94,85,85,249,60,122,102,196,179,171,179,305,225,225,0,143,-173,-173,-173,-173,-240,-239,-239,-207,-285,-259,-290,-257,-261,0,-301,-288,-400,-400,-400,-400,-1036,-953,-1851,-1310]} 1. e4 e5 2. Nf3 Nc6 3. Bc4 Bc5 4. c3 Nf6 5. O-O Nxe4 6. d4 exd4 7. cxd4 Bb6 (7... d5 $11) 8. Re1 {8.Re1 scores better than 8.d5. C56: Two Knights: 4 d4 exd4 5 0-0 Nxe4.} (8. d5 $1 $14 Ne7 9. Qe2) 8... d5 {[#]} (8... O-O $1 $11) 9. Bxd5 $1 $16 {[%mdl 512]} Qxd5 10. Nc3 {White is better.} Qh5 11. Rxe4+ $18 Be6 12. d5 (12. Bg5 $1 $18 {is the precise move to win.}) 12... O-O-O $16 {[%cal Re6d5] [#]} 13. Bg5 $146 ({Predecessor:} 13. Qb3 Bxd5 14. Nxd5 Qxd5 15. Qxd5 Rxd5 16. Bf4 Rhd8 17. g4 f6 18. g5 Nd4 19. Nxd4 Rxd4 {0-1 (51) Rodrigues Mota,R (2027)-Bures,V (2119) Chess.com INT 2021}) 13... Rd7 (13... f6 $16) 14. Qb3 Na5 {[#]} 15. dxe6 $1 Nxb3 16. exd7+ Kxd7 17. axb3 f6 18. Bf4 Re8 19. Rd1+ Kc8 {Hoping for ...Rxe4.} 20. Rxe8+ Qxe8 21. Nd5 Qe4 22. Ne5 $2 {[%mdl 8192]} Bd4 $1 $17 (22... Bxf2+ $2 23. Kxf2 b6 24. Nc6 $18) 23. Ne7+ Kb8 {Chess con chili.} 24. Nf3 {[%cal Od1e1] [#]} Qxf4 $2 (24... Qc2 $1 $17 {stays on course.} 25. Rc1 (25. Rf1 Bxb2) 25... Qxf2+ 26. Kh1 Be5) 25. Nxd4 $16 a5 (25... Qe4 $16 {was called for.}) 26. g3 (26. Nb5 $18 {[%cal Rd1d8]} b6 27. Nc6+ Kb7 28. Nd8+ Kb8 29. Nc6+ (29. Ne6 Qg4 $14) 29... Kb7 30. Nd8+ Kb8 31. Nd4 (31. Ne6 Qg4 $14)) 26... Qe4 27. Nef5 g6 {[#]} 28. Nb5 $1 {[%cal Rd1d8]} Qe8 {Prevents Rd8+.} 29. Nfd4 c6 $2 {[#]} (29... h5 $16) 30. Nd6 $2 (30. Ne6 $1 $18 {[%mdl 512]}) 30... Qg8 (30... Qd7 $14 31. Ne4 f5) 31. Nc4 a4 (31... Qd5 $16) 32. Nb6 $18 axb3 33. Nd7+ Kc7 (33... Kc8 $142) 34. Nxf6 Qc4 35. Ne8+ $2 ({Don't blunder} 35. Nxh7 $2 c5 36. Nxb3 (36. Nf3 $2 Qe2 $19) 36... Qxb3 $19) ({White should try} 35. Ne4 $18) 35... Kb6 {[#]} (35... Kb8 $1 $11 {keeps the balance.}) 36. Nd6 $2 {[%mdl 8192]} (36. f3 $1 $16 {is necessary to keep the advantage.}) 36... Qd5 $19 {[%mdl 1024] Black has strong compensation.} 37. Nc8+ Kc7 38. Ne7 (38. Na7 $142 Qc4 39. f4) 38... Qe5 39. Ng8 Kb6 40. Nh6 Qg5 {Prevents Ng4.} 41. Nf7 Qf6 42. Nh6 {aiming for Ng4.} Qg5 {Prevents Ng4.} 43. Nf7 Qd5 44. Nh6 {And now Ng4 would win.} c5 45. Ng4 {Threatens to win with Ne3.} cxd4 46. Rd3 (46. Ne3 $142 Qe4 47. Nf1) 46... Kc5 47. Nf6 Qf5 {[%csl LRd3,LRf6] Weighted Error Value: White=0.84/Black=0.60} 0-1